fUSD/lending_fUSD_20250124
["ID","MTS","AMOUNT","RATE_DAILY","PERIOD"]
[350261849,1737750548201,-15.9438844,0.00016105,2]
[350261850,1737750549123,-1000.0,0.00017005,2]
[350261851,1737750549144,-999.0,0.00017171,2]
[350261852,1737750549167,-250.0,0.00017577,2]
[350261853,1737750549188,-3341.23546619,0.00017626,2]
[350261854,1737750549209,-200.0,0.00017626,2]
[350261855,1737750549231,-403.56,0.00017627,2]
[350261856,1737750549253,-383.85,0.00017768,2]
[350261857,1737750549275,-1000.0,0.00017851,2]
[350261858,1737750549296,-176.6,0.00017873,2]
[350261859,1737750549319,-153.49,0.00017942,2]
[350261860,1737750549341,-172.97,0.00017979,2]
[350261861,1737750549365,-150.0,0.00017996,2]
[350261862,1737750549387,-1226.29453381,0.00018,2]
[350261876,1737750632412,-250.0,0.00017809,2]
[350261877,1737750632422,-1650.0,0.00017809,2]
[350261878,1737750632431,-173.40642769,0.000179,2]
[350261879,1737750632441,-345.98703843,0.00018,2]
[350261880,1737750632472,-1374.2055124,0.00018,2]
[350261881,1737750632485,-2407.77715235,0.00018,2]
[350261882,1737750632497,-6209.74175167,0.00018,2]
[350261883,1737750632508,-328.01300429,0.00018,2]
[350261884,1737750632583,-546.48601847,0.00018,2]
[350261885,1737750636359,-1314.690331,0.00018,2]
[350261886,1737750636371,-1044.31705658,0.00018,2]
[350261887,1737750636421,-720.0,0.00018,2]
[350261940,1737750638139,-372.81403297,0.00018,2]
[350261941,1737750638197,-73.49989859,0.00018,2]
[350261942,1737750638207,-418.28351986,0.00018,5]
[350261943,1737750638217,-401.16,0.00018015,2]
[350261944,1737750638226,-186.16,0.00018082,2]
[350261945,1737750638236,-150.0,0.00018114,2]
[350261946,1737750638246,-500.0,0.00018139,2]
[350261947,1737750638255,-700.0,0.00018139,2]
[350261948,1737750638265,-156.57,0.00018187,30]
[350261949,1737750638275,-1144.98,0.00018356,2]
[350261950,1737750638284,-478.66,0.00018369,2]
[350261951,1737750638294,-171.74,0.00018415,2]
[350261952,1737750638303,-246.43,0.00018418,2]
[350261953,1737750638314,-150.0,0.00018472,2]
[350261954,1737750638323,-248.7,0.00018534,2]
[350261955,1737750638333,-150.0,0.00018653,2]
[350261956,1737750638342,-10032.74783244,0.0001868,2]
[350261957,1737750638352,-5412.37804975,0.00018759,2]
[350261958,1737750638361,-251.09,0.00018766,2]
[350261959,1737750638372,-2561.38523,0.0001881,2]
[350261960,1737750638382,-150.0,0.00018821,2]
[350261961,1737750638391,-150.0,0.0001884,2]
[350261962,1737750638400,-427.87193083,0.0001887,2]
[350261963,1737750638411,-172.97,0.00018878,2]
[350261964,1737750638421,-160.93,0.0001889,2]
[350261965,1737750638430,-216.03867785,0.00018897,2]
[350261966,1737750638439,-1244.153,0.00018898,2]
[350261967,1737750638449,-10270.89554818,0.00018898,2]
[350261968,1737750638458,-1052.54090726,0.00018898,2]
[350261969,1737750638468,-1000.0,0.00018899,2]
[350261970,1737750638477,-5351.23509556,0.00018899,2]
[350261974,1737750638566,-20566.02495174,0.00018899,2]
[350261976,1737750638578,-634.21288752,0.00018899,2]
[350261978,1737750638589,-394.99196655,0.00018899,2]
[350261981,1737750638614,-9243.58729863,0.00018899,2]
[350261983,1737750638624,-194.37396252,0.00018899,2]
[350261985,1737750638633,-158.0543544,0.00018899,2]
[350261987,1737750638643,-1052.54090726,0.00018899,2]
[350261989,1737750638653,-177.06998902,0.000189,2]
[350261992,1737750638667,-8063.55692494,0.000189,2]
[350261994,1737750638679,-720.5320365,0.000189,2]
[350261996,1737750638690,-9017.24871779,0.000189,2]
[350261998,1737750638699,-343.21394905,0.000189,2]
[350262000,1737750638709,-157.26503501,0.000189,2]
[350262002,1737750638718,-3276.83794713,0.000189,2]
[350262004,1737750638728,-1052.54090726,0.000189,2]
[350262006,1737750638738,-500.0,0.00018973,2]
[350262008,1737750638748,-501.58961695,0.00018973,2]
[350262010,1737750638757,-151.0971161,0.00018973,2]
[350262012,1737750638767,-500.0,0.00018973,2]
[350262014,1737750638777,-520.26724375,0.00018973,2]
[350262016,1737750638787,-151.09702176,0.00018973,2]
[350262018,1737750638797,-38.7907602,0.00018973,2]
[350262141,1737750640326,-121.33041172,0.00018973,2]
[350262142,1737750640336,-151.0965544,0.00018973,2]
[350262143,1737750640346,-151.09681199,0.00018973,2]
[350262144,1737750640355,-152.4286465,0.00018973,2]
[350262145,1737750640364,-151.0971513,0.00018973,2]
[350262146,1737750640373,-421.61402409,0.00018973,2]
[350262147,1737750640385,-78.38597591,0.00018973,2]
[350262148,1737750640395,-500.0,0.00018986,2]
[350262149,1737750640405,-251.70915878,0.0001899,2]
[350262150,1737750640420,-500.0,0.00018996,2]
[350262151,1737750640430,-500.0,0.00018996,2]
[350262152,1737750640439,-500.0,0.00018996,2]
[350262153,1737750640450,-302.01607765,0.00018996,2]
[350262154,1737750640460,-500.0,0.00018996,2]
[350262155,1737750640470,-500.0,0.00018996,2]
[350262156,1737750640480,-500.0,0.00018996,2]
[350262157,1737750640490,-500.0,0.00018996,2]
[350262158,1737750640500,-267.65745049,0.00018996,2]
[350262159,1737750640510,-98700.23133718,0.00018997,2]
[350262160,1737750640595,-61373.87866981,0.00018997,2]
[350262161,1737750640610,-136697.34962663,0.00018997,2]
[350262162,1737750640624,-19802.79913226,0.00018997,2]
[350262163,1737750640634,-502.52608194,0.00018997,2]
[350262164,1737750640644,-362.41682986,0.00018997,2]
[350262165,1737750640654,-500.0,0.00018997,2]
[350262166,1737750640666,-380.74060403,0.00018997,2]
[350262167,1737750640676,-553.45062361,0.00018997,2]
[350262168,1737750640685,-502.82284699,0.00018997,2]
[350262169,1737750640695,-399.20812514,0.00018997,2]
[350262170,1737750640705,-500.0,0.00018997,2]
[350262171,1737750640714,-500.0,0.00018997,2]
[350262172,1737750640723,-500.0,0.00018997,2]
[350262173,1737750640733,-502.86736991,0.00018997,2]
[350262174,1737750640742,-500.0,0.00018997,2]
[350262175,1737750640752,-500.0,0.00018997,2]
[350262176,1737750640761,-500.0,0.00018997,2]
[350262177,1737750640771,-500.0,0.00018997,2]
[350262178,1737750640780,-500.0,0.00018997,2]
[350262179,1737750640790,-502.73354237,0.00018997,2]
[350262180,1737750640799,-500.0,0.00018997,2]
[350262181,1737750640809,-500.0,0.00018997,2]
[350262182,1737750640819,-500.0,0.00018997,2]
[350262183,1737750640828,-500.0,0.00018997,2]
[350262184,1737750640842,-500.0,0.00018997,2]
[350262185,1737750640851,-500.0,0.00018997,2]
[350262186,1737750640861,-500.0,0.00018997,2]
[350262187,1737750640871,-500.0,0.00018997,2]
[350262188,1737750640881,-1717.58,0.00018997,2]
[350262189,1737750640891,-500.0,0.00018997,2]
[350262190,1737750640900,-502.17049332,0.00018997,2]
[350262191,1737750640912,-500.0,0.00018997,2]
[350262192,1737750640922,-500.0,0.00018997,2]
[350262193,1737750640932,-500.0,0.00018997,2]
[350262194,1737750640941,-237.69566938,0.00018997,2]
[350262195,1737750640951,-500.0,0.00018997,2]
[350262197,1737750640960,-500.0,0.00018997,2]
[350262199,1737750640970,-500.0,0.00018997,2]
[350262201,1737750640979,-500.0,0.00018997,2]
[350262203,1737750640988,-500.0,0.00018997,2]
[350262205,1737750640998,-201.46627162,0.00018997,2]
[350262207,1737750641007,-502.4292832,0.00018997,2]
[350262209,1737750641017,-500.0,0.00018997,2]
[350262211,1737750641027,-500.0,0.00018997,2]
[350262213,1737750641037,-500.0,0.00018997,2]
[350262214,1737750641046,-505.16127656,0.00018997,2]
[350262216,1737750641055,-500.0,0.00018997,2]
[350262218,1737750641066,-420.770977,0.00018997,2]
[350262219,1737750641075,-500.0,0.00018997,2]
[350262220,1737750641085,-500.0,0.00018997,2]
[350262222,1737750641095,-500.0,0.00018997,2]
[350262224,1737750641105,-500.0,0.00018997,2]
[350262225,1737750641114,-500.0,0.00018997,2]
[350262226,1737750641126,-500.0,0.00018997,2]
[350262227,1737750641135,-500.0,0.00018997,2]
[350262228,1737750641145,-500.0,0.00018997,2]
[350262229,1737750641155,-500.0,0.00018997,2]
[350262230,1737750641167,-500.0,0.00018997,2]
[350262231,1737750641176,-585.392894,0.00018997,2]
[350262232,1737750641186,-502.60373083,0.00018997,2]
[350262233,1737750641195,-500.0,0.00018997,2]
[350262234,1737750641205,-500.0,0.00018997,2]
[350262235,1737750641215,-500.0,0.00018997,2]
[350262236,1737750641225,-156.439023,0.00018997,2]
[350262237,1737750641235,-395.67201105,0.00018997,2]
[350262238,1737750641253,-104.32798895,0.00018997,2]
[350262239,1737750641263,-225.10079105,0.00018997,2]
[350262247,1737750643314,-216.03867769,0.00018947,2]
[350262248,1737750643323,-104.11131871,0.00018996,2]
[350262249,1737750643408,-89.58980692,0.00018996,2]
[350262250,1737750643422,-306.29887437,0.00018996,2]
[350262251,1737750643431,-500.0,0.00018996,2]
[350262252,1737750643441,-274.89920895,0.00018997,2]
[350262253,1737750643450,-160.73718,0.00018997,2]
[350262254,1737750643460,-500.0,0.00018997,2]
[350262255,1737750643469,-500.0,0.00018997,2]
[350262256,1737750643479,-500.0,0.00018997,2]
[350262257,1737750643488,-320.30453579,0.00018997,2]
[350262258,1737750643497,-406.9063606,0.00018997,2]
[350262259,1737750643506,-500.0,0.00018997,2]
[350262260,1737750643516,-500.0,0.00018997,2]
[350262261,1737750643525,-500.0,0.00018997,2]
[350262262,1737750643534,-265.42565027,0.00018997,2]
[350262263,1737750643546,-234.57434973,0.00018997,2]
[350262264,1737750643556,-500.0,0.00018997,2]
[350262265,1737750643565,-500.0,0.00018997,2]
[350262266,1737750643575,-500.0,0.00018997,2]
[350262267,1737750643584,-500.0,0.00018997,2]
[350262268,1737750643717,-500.0,0.00018997,2]
[350262269,1737750643727,-500.0,0.00018997,2]
[350262270,1737750643736,-44.62565027,0.00018997,2]
[350262271,1737750643747,-455.37434973,0.00018997,2]
[350262272,1737750643757,-500.0,0.00018997,2]
[350262273,1737750643766,-500.0,0.00018997,2]
[350262274,1737750643776,-519.46566079,0.00018997,2]
[350262275,1737750643785,-500.0,0.00018997,2]
[350262276,1737750643794,-222.3396907,0.00018997,2]
[350262277,1737750643805,-277.6603093,0.00018997,2]
[350262278,1737750643814,-500.0,0.00018997,2]
[350262279,1737750643824,-500.0,0.00018997,2]
[350262280,1737750643834,-500.0,0.00018997,2]
[350262281,1737750643846,-598.57146319,0.00018997,2]
[350262282,1737750643855,-500.0,0.00018997,2]
[350262283,1737750643864,-500.0,0.00018997,2]
[350262284,1737750643873,-500.0,0.00018997,2]
[350262285,1737750643884,-500.0,0.00018997,2]
[350262286,1737750643893,-360.24866869,0.00018997,2]
[350262287,1737750643909,-139.75133131,0.00018997,2]
[350262288,1737750643921,-500.0,0.00018997,2]
[350262289,1737750643931,-500.0,0.00018997,2]
[350262290,1737750643941,-500.0,0.00018997,2]
[350262291,1737750643950,-503.40191725,0.00018997,2]
[350262292,1737750643960,-501.58991844,0.00018997,2]
[350262293,1737750643971,-500.0,0.00018997,2]
[350262294,1737750643980,-512.95802833,0.00018997,2]
[350262295,1737750643990,-500.0,0.00018997,2]
[350262296,1737750643999,-278.21352267,0.00018997,2]
[350262297,1737750644009,-500.0,0.00018997,2]
[350262298,1737750644018,-497.42170741,0.00018997,2]
[350262299,1737750644027,-500.0,0.00018997,2]
[350262300,1737750644037,-500.0,0.00018997,2]
[350262301,1737750644046,-500.0,0.00018997,2]
[350262302,1737750644056,-500.0,0.00018997,2]
[350262303,1737750644065,-500.0,0.00018997,2]
[350262304,1737750644075,-506.36489304,0.00018997,2]
[350262305,1737750644084,-500.0,0.00018997,2]
[350262306,1737750644094,-500.0,0.00018997,2]
[350262307,1737750644103,-500.0,0.00018997,2]
[350262308,1737750644112,-500.0,0.00018997,2]
[350262309,1737750644121,-500.0,0.00018997,2]
[350262310,1737750644131,-873.54,0.00018997,2]
[350262311,1737750644140,-500.0,0.00018997,2]
[350262312,1737750644149,-500.0,0.00018997,2]
[350262313,1737750644158,-500.0,0.00018997,2]
[350262314,1737750644170,-500.0,0.00018997,2]
[350262315,1737750644179,-500.0,0.00018997,2]
[350262316,1737750644189,-497.51605937,0.00018997,2]
[350262317,1737750644198,-500.0,0.00018997,2]
[350262318,1737750644207,-500.0,0.00018997,2]
[350262319,1737750644216,-651.39,0.00018997,2]
[350262320,1737750644225,-510.0116926,0.00018997,2]
[350262321,1737750644234,-500.0,0.00018997,2]
[350262322,1737750644243,-500.0,0.00018997,2]
[350262323,1737750644252,-500.0,0.00018997,2]
[350262324,1737750644262,-517.31,0.00018997,2]
[350262325,1737750644271,-500.0,0.00018997,2]
[350262326,1737750644280,-938.77,0.00018997,2]
[350262327,1737750644289,-512.23,0.00018997,2]
[350262328,1737750644298,-512.23,0.00018997,2]
[350262329,1737750644307,-512.23,0.00018997,2]
[350262330,1737750644315,-512.23,0.00018997,2]
[350262331,1737750644325,-512.23,0.00018997,2]
[350262332,1737750644335,-500.0,0.00018997,2]
[350262333,1737750644344,-512.23,0.00018997,2]
[350262334,1737750644354,-500.0,0.00018997,2]
[350262335,1737750644363,-512.23,0.00018997,2]
[350262336,1737750644372,-512.23,0.00018997,2]
[350262337,1737750644382,-512.23,0.00018997,2]
[350262338,1737750644391,-512.23,0.00018997,2]
[350262339,1737750644400,-210.57378648,0.00018997,2]
[350262340,1737750644413,-301.65621352,0.00018997,2]
[350262341,1737750644422,-500.0,0.00018997,2]
[350262342,1737750644432,-512.23,0.00018997,2]
[350262343,1737750644442,-500.0,0.00018997,2]
[350262344,1737750644452,-512.23,0.00018997,2]
[350262345,1737750644461,-512.23,0.00018997,2]
[350262346,1737750644471,-512.23,0.00018997,2]
[350262347,1737750644480,-512.23,0.00018997,2]
[350262348,1737750644490,-501.27110538,0.00018997,2]
[350262349,1737750644499,-512.23,0.00018997,2]
[350262350,1737750644510,-500.0,0.00018997,2]
[350262351,1737750644519,-512.23,0.00018997,2]
[350262352,1737750644528,-512.23,0.00018997,2]
[350262353,1737750644538,-328.6326811,0.00018997,2]
[350262354,1737750644750,-183.5973189,0.00018997,2]
[350262355,1737750644759,-504.3461511,0.00018997,2]
[350262356,1737750644771,-7.8838489,0.00018997,2]
[350262357,1737750644780,-283.04598823,0.00018997,2]
[350262358,1737750644791,-229.18401177,0.00018997,2]
[350262359,1737750644800,-512.23,0.00018997,2]
[350262360,1737750644809,-512.23,0.00018997,2]
[350262361,1737750644818,-500.0,0.00018997,2]
[350262362,1737750644827,-485.45859344,0.00018997,2]
[350262363,1737750644840,-57.93140656,0.00018997,2]
[350262364,1737750644849,-500.0,0.00018997,2]
[350262365,1737750644859,-500.0,0.00018997,2]
[350262366,1737750644868,-500.0,0.00018997,2]
[350262367,1737750644878,-938.07,0.00018997,2]
[350262368,1737750644888,-500.0,0.00018997,2]
[350262369,1737750644897,-500.0,0.00018997,2]
[350262370,1737750644906,-500.0,0.00018997,2]
[350262371,1737750644918,-500.0,0.00018997,2]
[350262372,1737750644927,-500.0,0.00018997,2]
[350262373,1737750644936,-515.74,0.00018997,2]
[350262374,1737750644945,-992.48,0.00018997,2]
[350262375,1737750644954,-878.54,0.00018997,2]
[350262376,1737750644963,-500.0,0.00018997,2]
[350262377,1737750644973,-153.5843547,0.00018997,2]
[350262378,1737750644982,-500.0,0.00018997,2]
[350262379,1737750644991,-500.0,0.00018997,2]
[350262380,1737750645000,-841.06,0.00018997,2]
[350262381,1737750645011,-1658.51,0.00018997,2]
[350262382,1737750645020,-502.73669839,0.00018997,2]
[350262383,1737750645030,-500.0,0.00018997,2]
[350262384,1737750645039,-1085.11,0.00018997,2]
[350262385,1737750645048,-645.92,0.00018997,2]
[350262386,1737750645058,-500.0,0.00018997,2]
[350262387,1737750645067,-500.0,0.00018997,2]
[350262388,1737750645076,-637.79,0.00018997,2]
[350262389,1737750645085,-500.0,0.00018997,2]
[350262390,1737750645094,-500.0,0.00018997,2]
[350262391,1737750645103,-500.0,0.00018997,2]
[350262392,1737750645112,-500.0,0.00018997,2]
[350262393,1737750645121,-695.75,0.00018997,2]
[350262394,1737750645131,-500.0,0.00018997,2]
[350262395,1737750645140,-500.0,0.00018997,2]
[350262396,1737750645149,-500.0,0.00018997,2]
[350262397,1737750645159,-1594.85,0.00018997,2]
[350262398,1737750645171,-500.0,0.00018997,2]
[350262399,1737750645180,-500.0,0.00018997,2]
[350262400,1737750645190,-884.04,0.00018997,2]
[350262401,1737750645199,-500.0,0.00018997,2]
[350262402,1737750645208,-2041.47,0.00018997,2]
[350262403,1737750645218,-500.0,0.00018997,2]
[350262404,1737750645227,-522.37049478,0.00018997,2]
[350262405,1737750645236,-500.0,0.00018997,2]
[350262406,1737750645246,-500.0,0.00018997,2]
[350262407,1737750645255,-1948.51,0.00018997,2]
[350262408,1737750645264,-500.0,0.00018997,2]
[350262409,1737750645273,-834.72,0.00018997,2]
[350262410,1737750645283,-537.77,0.00018997,2]
[350262411,1737750645292,-500.0,0.00018997,2]
[350262412,1737750645301,-500.0,0.00018997,2]
[350262413,1737750645311,-500.0,0.00018997,2]
[350262414,1737750645320,-500.0,0.00018997,2]
[350262415,1737750645329,-1000.0,0.00018997,30]
[350262416,1737750645339,-500.0,0.00018997,2]
[350262417,1737750645348,-500.0,0.00018997,2]
[350262418,1737750645358,-500.0,0.00018997,2]
[350262419,1737750645367,-565.61,0.00018997,2]
[350262420,1737750645377,-500.0,0.00018997,2]
[350262421,1737750645387,-500.0,0.00018997,2]
[350262422,1737750645396,-500.0,0.00018997,2]
[350262423,1737750645405,-1378.46,0.00018997,2]
[350262424,1737750645417,-1105.4,0.00018997,2]
[350262425,1737750645427,-504.74584264,0.00018997,2]
[350262426,1737750645436,-627.82,0.00018997,2]
[350262427,1737750645446,-500.0,0.00018997,2]
[350262428,1737750645456,-500.0,0.00018997,2]
[350262429,1737750645465,-500.0,0.00018997,2]
[350262430,1737750645475,-500.0,0.00018997,2]
[350262431,1737750645484,-500.0,0.00018997,2]
[350262432,1737750645493,-500.0,0.00018997,2]
[350262433,1737750645503,-976.72,0.00018997,2]
[350262434,1737750645513,-508.34549158,0.00018997,2]
[350262435,1737750645523,-500.0,0.00018997,2]
[350262436,1737750645532,-506.42197446,0.00018997,2]
[350262437,1737750645541,-1056.58,0.00018997,2]
[350262438,1737750645551,-151.0,0.00018997,2]
[350262439,1737750645560,-500.0,0.00018997,2]
[350262440,1737750645570,-500.0,0.00018997,2]
[350262441,1737750645579,-500.0,0.00018997,2]
[350262442,1737750645588,-500.0,0.00018997,2]
[350262443,1737750645598,-500.0,0.00018997,2]
[350262444,1737750645607,-500.0,0.00018997,2]
[350262445,1737750645616,-151.0,0.00018997,2]
[350262446,1737750645625,-151.0,0.00018997,2]
[350262447,1737750645634,-687.85,0.00018997,2]
[350262448,1737750645644,-502.77955826,0.00018997,2]
[350262449,1737750645653,-1295.73,0.00018997,2]
[350262450,1737750645663,-500.0,0.00018997,2]
[350262451,1737750645673,-151.0,0.00018997,2]
[350262452,1737750645683,-342.75111032,0.00018997,2]
[350262453,1737750645692,-500.0,0.00018997,2]
[350262454,1737750645702,-500.0,0.00018997,2]
[350262455,1737750645711,-151.0,0.00018997,2]
[350262456,1737750645720,-1989.39,0.00018997,2]
[350262457,1737750645729,-503.99158538,0.00018997,2]
[350262458,1737750645738,-500.0,0.00018997,2]
[350262459,1737750645747,-500.0,0.00018997,2]
[350262460,1737750645757,-500.0,0.00018997,2]
[350262461,1737750645766,-151.0,0.00018997,2]
[350262462,1737750645776,-500.0,0.00018997,2]
[350262463,1737750645914,-500.0,0.00018997,2]
[350262464,1737750645924,-501.81592577,0.00018997,2]
[350262465,1737750645933,-500.0,0.00018997,2]
[350262466,1737750645942,-151.0,0.00018997,2]
[350262467,1737750645951,-1560.8,0.00018997,2]
[350262468,1737750645961,-500.0,0.00018997,2]
[350262469,1737750645970,-500.0,0.00018997,2]
[350262470,1737750645979,-500.0,0.00018997,2]
[350262471,1737750645988,-500.0,0.00018997,2]
[350262472,1737750645997,-500.0,0.00018997,2]
[350262473,1737750646007,-500.0,0.00018997,2]
[350262475,1737750646016,-500.0,0.00018997,2]
[350262476,1737750646024,-500.0,0.00018997,2]
[350262478,1737750646035,-500.0,0.00018997,2]
[350262479,1737750646044,-900.02,0.00018997,2]
[350262480,1737750646053,-152.83071,0.00018997,2]
[350262481,1737750646063,-500.0,0.00018997,2]
[350262482,1737750646071,-500.0,0.00018997,2]
[350262483,1737750646080,-500.0,0.00018997,2]
[350262484,1737750646089,-151.0,0.00018997,2]
[350262485,1737750646098,-500.0,0.00018997,2]
[350262487,1737750646107,-500.0,0.00018997,2]
[350262489,1737750646116,-500.0,0.00018997,2]
[350262490,1737750646125,-500.0,0.00018997,2]
[350262491,1737750646134,-151.0,0.00018997,2]
[350262493,1737750646143,-213.98416567,0.00018997,2]
[350262495,1737750646152,-500.0,0.00018997,2]
[350262496,1737750646163,-500.0,0.00018997,2]
[350262497,1737750646172,-500.0,0.00018997,2]
[350262498,1737750646181,-371.88844905,0.00018997,2]
[350262499,1737750646191,-500.0,0.00018998,2]
[350262500,1737750646200,-500.0,0.00018998,2]
[350262501,1737750646209,-557.6389377,0.00018998,2]
[350262502,1737750646218,-500.0,0.00018998,2]
[350262503,1737750646227,-500.0,0.00018998,2]
[350262504,1737750646237,-453.13394462,0.00018998,2]
[350262505,1737750646246,-500.0,0.00018998,2]
[350262506,1737750646256,-500.0,0.00018998,2]
[350262507,1737750646265,-500.0,0.00018998,2]
[350262508,1737750646274,-500.0,0.00018998,2]
[350262509,1737750646284,-558.23640813,0.00018998,2]
[350262510,1737750646293,-500.0,0.00018998,2]
[350262511,1737750646302,-500.0,0.00018998,2]
[350262512,1737750646311,-500.0,0.00018998,2]
[350262513,1737750646320,-500.0,0.00018998,2]
[350262514,1737750646329,-500.0,0.00018998,2]
[350262515,1737750646339,-500.0,0.00018998,2]
[350262516,1737750646348,-367.87910992,0.00018998,2]
[350262517,1737750646357,-200.0,0.00018998,2]
[350262518,1737750646367,-271.74689622,0.00018998,2]
[350262519,1737750646376,-500.0,0.00018998,2]
[350262520,1737750646385,-163.79842831,0.00018998,2]
[350262521,1737750646395,-500.0,0.00018998,2]
[350262522,1737750646404,-500.0,0.00018998,2]
[350262523,1737750646416,-500.0,0.00018998,2]
[350262524,1737750646425,-495.0,0.00018998,2]
[350262525,1737750646434,-500.0,0.00018998,2]
[350262526,1737750646444,-500.0,0.00018998,2]
[350262527,1737750646454,-500.0,0.00018998,2]
[350262528,1737750646463,-500.0,0.00018998,2]
[350262529,1737750646473,-500.0,0.00018998,2]
[350262530,1737750646483,-500.0,0.00018998,2]
[350262531,1737750646492,-500.0,0.00018998,2]
[350262532,1737750646502,-500.0,0.00018998,2]
[350262533,1737750646511,-500.0,0.00018998,2]
[350262534,1737750646520,-500.0,0.00018998,2]
[350262535,1737750646530,-242.49123009,0.00018998,2]
[350262536,1737750646539,-500.0,0.00018998,2]
[350262537,1737750646549,-500.0,0.00018998,2]
[350262538,1737750646559,-500.0,0.00018998,2]
[350262539,1737750646568,-500.0,0.00018998,2]
[350262540,1737750646578,-500.0,0.00018998,2]
[350262541,1737750646587,-500.0,0.00018998,2]
[350262542,1737750646596,-500.0,0.00018998,2]
[350262543,1737750646606,-500.0,0.00018998,2]
[350262544,1737750646615,-500.0,0.00018998,2]
[350262545,1737750646624,-510.32359324,0.00018998,2]
[350262546,1737750646634,-583.99,0.00018998,2]
[350262547,1737750646643,-500.0,0.00018998,2]
[350262548,1737750646652,-500.0,0.00018998,2]
[350262549,1737750646663,-500.0,0.00018998,2]
[350262550,1737750646673,-500.0,0.00018998,2]
[350262551,1737750646682,-500.0,0.00018998,2]
[350262552,1737750646692,-500.0,0.00018998,2]
[350262553,1737750646701,-500.0,0.00018998,2]
[350262554,1737750646710,-500.0,0.00018998,2]
[350262555,1737750646720,-500.0,0.00018998,2]
[350262556,1737750646730,-500.0,0.00018998,2]
[350262557,1737750646739,-500.0,0.00018998,2]
[350262558,1737750646748,-500.0,0.00018998,2]
[350262559,1737750646758,-151.0,0.00018998,2]
[350262560,1737750646767,-151.0,0.00018998,2]
[350262561,1737750646776,-500.0,0.00018998,2]
[350262562,1737750646785,-502.84443433,0.00018998,2]
[350262563,1737750646795,-500.0,0.00018998,2]
[350262565,1737750646804,-500.0,0.00018998,2]
[350262567,1737750646813,-500.0,0.00018998,2]
[350262569,1737750646822,-500.0,0.00018998,2]
[350262571,1737750646831,-534.38920173,0.00018998,2]
[350262573,1737750646844,-500.0,0.00018998,2]
[350262575,1737750646853,-505.65230169,0.00018998,2]
[350262577,1737750646863,-512.38146752,0.00018998,2]
[350262579,1737750646872,-500.0,0.00018998,2]
[350262581,1737750646883,-151.0,0.00018998,2]
[350262583,1737750646892,-151.0,0.00018998,2]
[350262585,1737750646902,-500.0,0.00018998,2]
[350262587,1737750646911,-500.0,0.00018998,2]
[350262589,1737750646922,-500.0,0.00018998,2]
[350262591,1737750646932,-500.0,0.00018998,2]
[350262592,1737750646941,-500.0,0.00018998,2]
[350262593,1737750646950,-505.43611006,0.00018998,2]
[350262594,1737750646959,-500.0,0.00018998,2]
[350262595,1737750646969,-500.0,0.00018998,2]
[350262596,1737750646979,-500.0,0.00018998,2]
[350262597,1737750646988,-500.0,0.00018998,2]
[350262598,1737750646997,-280.22371811,0.00018998,2]
[350262599,1737750647006,-151.0,0.00018998,2]
[350262600,1737750647016,-151.0,0.00018998,2]
[350262601,1737750647025,-500.0,0.00018998,2]